Workbook

Sheet Traverse
A1: Traverse Adjustment
B2: Project: | C2: Test Data
B4: Input Data
E5: Distance scale: | F5: 1
J6: ="Coordiantes of "&B9 -> Coordiantes of A
B7: Line | E7: Distance | G7: Unadjusted | J7: East | K7: 500
B8: From | C8: To | D8: Azimuth | E8: Unscaled | F8: Scaled | G8: Lat | H8: Dep | J8: North | K8: 1000
B9: A | C9: B | D9: 345 00 00 | E9: 395.63 | F9: =IF(E9<>"",E9*$F$5,"") -> 395.63 | G9: =IF(E9,Lat(D9,F9),"") -> 382.1492347 | H9: =IF(E9,dep(D9,F9),"") -> -102.3965788
B10: B | C10: C | D10: 236 27 10 | E10: 545.58 | F10: =IF(E10<>"",E10*$F$5,"") -> 545.58 | G10: =IF(E10,Lat(D10,F10),"") -> -301.5006415 | H10: =IF(E10,dep(D10,F10),"") -> -454.7030895
B11: C | C11: D | D11: 138 51 38 | E11: 366.21 | F11: 366.21 | G11: =IF(E11,Lat(D11,F11),"") -> -275.7966524 | H11: 240.927314
B12: D | C12: A | D12: 58 20 24 | E12: 371.15 | F12: 371.15 | G12: =IF(E12,Lat(D12,F12),"") -> 194.8083008 | H12: 315.9146221 | J12: Closure Summary
G13: =IF(E13,Lat(D13,F13),"") ->  | K13: Closure Error
G14: =IF(E14,Lat(D14,F14),"") ->  | K14: Azimuth | L14: Dist
G15: =IF(E15,Lat(D15,F15),"") ->  | K15: =IF(F20=0,"",InverseAz(G20,H20)) -> 217 10 58.94 | L15: =IF(AND(G20<>0,H20<>0),SQRT(G20^2+H20^2),"") -> 0.4264524121
G16: =IF(E16,Lat(D16,F16),"") ->  | K16: Precision: | L16: =IF(L15<>"","1/"&TEXT(F20/L15,"#,###,###"),"") -> 1/3,936
G17: =IF(E17,Lat(D17,F17),"") -> 
G18: =IF(E18,Lat(D18,F18),"") -> 
G19: =IF(E19,Lat(D19,F19),"") -> 
E20: sums: | F20: =SUM(F9:F19) -> 1678.57 | G20: =SUM(G9:G19) -> -0.3397584154 | H20: =SUM(H9:H19) -> -0.2577321845
B22: Adjusted Values
D23: Compass Rule | F23: Transit Rule | H23: Crandall Method | K23: Compass Rule | M23: Transit Rule | O23: Crandall Method
C24: Line | D24: Azimuth | E24: Dist | F24: Azimuth | G24: Dist | H24: Azimuth | I24: Dist | J24: Point | K24: North | L24: East | M24: North | N24: East | O24: Northg | P24: East
C25: =IF(B9="","",B9&"-"&C9) -> A-B | D25: =Compass_Rule!H5 -> 345 00 41.39 | E25: =Compass_Rule!I5 -> 395.6916363 | F25: =Transit_Rule!H5 -> 345 00 27.1 | G25: =Transit_Rule!I5 -> 395.7325255 | H25: =Crandall_Method!H5 -> 345 00 00 | I25: =Crandall_Method!I5 -> 395.7424594 | J25: =IF(B9="","",B9) -> A | K25: =Compass_Rule!D22 -> 1000 | L25: =Compass_Rule!C22 -> 500 | M25: =Transit_Rule!D22 -> 1000 | N25: =Transit_Rule!C22 -> 500 | O25: =Crandall_Method!D22 -> 1000 | P25: =Crandall_Method!C22 -> 500
C26: =IF(B10="","",B10&"-"&C10) -> B-C | D26: =Compass_Rule!H6 -> 236 27 27.29 | E26: =Compass_Rule!I6 -> 545.449159 | F26: =Transit_Rule!H6 -> 236 27 15.98 | G26: =Transit_Rule!I6 -> 545.4432755 | H26: =Crandall_Method!H6 -> 236 27 10 | I26: =Crandall_Method!I6 -> 545.3573316 | J26: B | K26: =Compass_Rule!D23 -> 1382.229314 | L26: =Compass_Rule!C23 -> 397.6641673 | M26: =Transit_Rule!D23 -> 1382.261721 | N26: =Transit_Rule!C23 -> 397.6271126 | O26: =Crandall_Method!D23 -> 1382.257862 | P26: =Crandall_Method!C23 -> 397.5743145
C27: C-D | D27: =Compass_Rule!H7 -> 138 50 46.67 | E27: =Compass_Rule!I7 -> 366.1911801 | F27: =Transit_Rule!H7 -> 138 50 44.26 | G27: =Transit_Rule!I7 -> 366.1855469 | H27: =Crandall_Method!H7 -> 138 51 38 | I27: =Crandall_Method!I7 -> 366.1706169 | J27: C | K27: =Compass_Rule!D24 -> 1080.839103 | L27: =Compass_Rule!C24 -> -56.95515237 | M27: =Transit_Rule!D24 -> 1080.849828 | N27: =Transit_Rule!C24 -> -56.97077239 | O27: =Crandall_Method!D24 -> 1080.880273 | P27: =Crandall_Method!C24 -> -56.94319629
C28: D-A | D28: =Compass_Rule!H8 -> 58 20 05.09 | E28: =Compass_Rule!I8 -> 371.237939 | F28: =Transit_Rule!H8 -> 58 20 18.19 | G28: =Transit_Rule!I8 -> 371.2423131 | H28: =Crandall_Method!H8 -> 58 20 24 | I28: =Crandall_Method!I8 -> 371.2994048 | J28: D | K28: =Compass_Rule!D25 -> 805.116575 | L28: =Compass_Rule!C25 -> 184.0283905 | M28: =Transit_Rule!D25 -> 805.1343568 | N28: =Transit_Rule!C25 -> 184.0122849 | O28: =Crandall_Method!D25 -> 805.11328 | P28: =Crandall_Method!C25 -> 183.9582079
D29: =Compass_Rule!H9 ->  | E29: =Compass_Rule!I9 ->  | F29: =Transit_Rule!H9 ->  | G29: =Transit_Rule!I9 ->  | H29: =Crandall_Method!H9 ->  | I29: =Crandall_Method!I9 ->  | K29: =Compass_Rule!D26 -> 1000 | L29: =Compass_Rule!C26 -> 500 | M29: =Transit_Rule!D26 -> 1000 | N29: =Transit_Rule!C26 -> 500 | O29: =Crandall_Method!D26 -> 1000 | P29: =Crandall_Method!C26 -> 500
D30: =Compass_Rule!H10 ->  | E30: =Compass_Rule!I10 ->  | F30: =Transit_Rule!H10 ->  | G30: =Transit_Rule!I10 ->  | H30: =Crandall_Method!H10 ->  | I30: =Crandall_Method!I10 ->  | K30: =Compass_Rule!D27 ->  | L30: =Compass_Rule!C27 ->  | M30: =Transit_Rule!D27 ->  | N30: =Transit_Rule!C27 ->  | O30: =Crandall_Method!D27 ->  | P30: =Crandall_Method!C27 -> 
D31: =Compass_Rule!H11 ->  | E31: =Compass_Rule!I11 ->  | F31: =Transit_Rule!H11 ->  | G31: =Transit_Rule!I11 ->  | H31: =Crandall_Method!H11 ->  | I31: =Crandall_Method!I11 ->  | K31: =Compass_Rule!D28 ->  | L31: =Compass_Rule!C28 ->  | M31: =Transit_Rule!D28 ->  | N31: =Transit_Rule!C28 ->  | O31: =Crandall_Method!D28 ->  | P31: =Crandall_Method!C28 -> 
D32: =Compass_Rule!H12 ->  | E32: =Compass_Rule!I12 ->  | F32: =Transit_Rule!H12 ->  | G32: =Transit_Rule!I12 ->  | H32: =Crandall_Method!H12 ->  | I32: =Crandall_Method!I12 ->  | K32: =Compass_Rule!D29 ->  | L32: =Compass_Rule!C29 ->  | M32: =Transit_Rule!D29 ->  | N32: =Transit_Rule!C29 ->  | O32: =Crandall_Method!D29 ->  | P32: =Crandall_Method!C29 -> 
D33: =Compass_Rule!H13 ->  | E33: =Compass_Rule!I13 ->  | F33: =Transit_Rule!H13 ->  | G33: =Transit_Rule!I13 ->  | H33: =Crandall_Method!H13 ->  | I33: =Crandall_Method!I13 ->  | K33: =Compass_Rule!D30 ->  | L33: =Compass_Rule!C30 ->  | M33: =Transit_Rule!D30 ->  | N33: =Transit_Rule!C30 ->  | O33: =Crandall_Method!D30 ->  | P33: =Crandall_Method!C30 -> 
D34: =Compass_Rule!H14 ->  | E34: =Compass_Rule!I14 ->  | F34: =Transit_Rule!H14 ->  | G34: =Transit_Rule!I14 ->  | H34: =Crandall_Method!H14 ->  | I34: =Crandall_Method!I14 ->  | K34: =Compass_Rule!D31 ->  | L34: =Compass_Rule!C31 ->  | M34: =Transit_Rule!D31 ->  | N34: =Transit_Rule!C31 ->  | O34: =Crandall_Method!D31 ->  | P34: =Crandall_Method!C31 -> 
B36: Area By Adjustment
C37: Rule | D37: Area | E37: Error
C38: Comapss | D38: =Compass_Rule!F35 -> 169348.019 | E38: =Compass_Rule!F36 -> 60.84518792
C39: Transit | D39: =Transit_Rule!F35 -> 169356.898 | E39: =Transit_Rule!F36 -> 60.84837807
C40: Crandall | D40: =Crandall_Method!F35 -> 169357.0386 | E40: =Crandall_Method!F36 -> 60.84842858

Sheet Compass_Rule
A1: Compass Rule Adjustment
D3: Unadjusted | F3: Adjusted values
B4: Line | C4: Unadj Dist | D4: Lat | E4: Dep | F4: Lat | G4: Dep | H4: Azimuth | I4: Distance
B5: =IF(Traverse!B9="","",Traverse!B9&"-"&Traverse!C9) -> A-B | C5: =IF(Traverse!F9<>"",Traverse!F9,"") -> 395.63 | D5: =Traverse!G9 -> 382.1492347 | E5: =Traverse!H9 -> -102.3965788 | F5: =IF(C5<>"",+D5-($D$16*(C5/$C$16)),"") -> 382.2293139 | G5: =IF(C5<>"",+E5-($E$16*(C5/$C$16)),"") -> -102.3358327 | H5: =IF(F5="","",InverseAz(F5,G5)) -> 345 00 41.39 | I5: =IF(C5<>"",SQRT(F5^2+G5^2),"") -> 395.6916363
B6: =IF(Traverse!B10="","",Traverse!B10&"-"&Traverse!C10) -> B-C | C6: =IF(Traverse!F10<>"",Traverse!F10,"") -> 545.58 | D6: =Traverse!G10 -> -301.5006415 | E6: =Traverse!H10 -> -454.7030895 | F6: =IF(C6<>"",+D6-($D$16*(C6/$C$16)),"") -> -301.3902109 | G6: =IF(C6<>"",+E6-($E$16*(C6/$C$16)),"") -> -454.6193197 | H6: =IF(F6="","",InverseAz(F6,G6)) -> 236 27 27.29 | I6: =IF(C6<>"",SQRT(F6^2+G6^2),"") -> 545.449159
B7: =IF(Traverse!B11="","",Traverse!B11&"-"&Traverse!C11) -> C-D | C7: =IF(Traverse!F11<>"",Traverse!F11,"") -> 366.21 | D7: =Traverse!G11 -> -275.7966524 | E7: =Traverse!H11 -> 240.927314 | F7: -275.722528 | G7: 240.9835429 | H7: 138 50 46.67 | I7: 366.1911801
B8: =IF(Traverse!B12="","",Traverse!B12&"-"&Traverse!C12) -> D-A | C8: =IF(Traverse!F12<>"",Traverse!F12,"") -> 371.15 | D8: =Traverse!G12 -> 194.8083008 | E8: =Traverse!H12 -> 315.9146221 | F8: 194.883425 | G8: 315.9716095 | H8: 58 20 05.09 | I8: 371.237939
B9: =IF(Traverse!B13="","",Traverse!B13&"-"&Traverse!C13) ->  | C9: =IF(Traverse!F13<>"",Traverse!F13,"") ->  | D9: =Traverse!G13 ->  | E9: =Traverse!H13 -> 
B10: =IF(Traverse!B14="","",Traverse!B14&"-"&Traverse!C14) ->  | C10: =IF(Traverse!F14<>"",Traverse!F14,"") ->  | D10: =Traverse!G14 ->  | E10: =Traverse!H14 -> 
B11: =IF(Traverse!B15="","",Traverse!B15&"-"&Traverse!C15) ->  | C11: =IF(Traverse!F15<>"",Traverse!F15,"") ->  | D11: =Traverse!G15 ->  | E11: =Traverse!H15 -> 
B12: =IF(Traverse!B16="","",Traverse!B16&"-"&Traverse!C16) ->  | C12: =IF(Traverse!F16<>"",Traverse!F16,"") ->  | D12: =Traverse!G16 ->  | E12: =Traverse!H16 -> 
B13: =IF(Traverse!B17="","",Traverse!B17&"-"&Traverse!C17) ->  | C13: =IF(Traverse!F17<>"",Traverse!F17,"") ->  | D13: =Traverse!G17 ->  | E13: =Traverse!H17 -> 
B14: =IF(Traverse!B18="","",Traverse!B18&"-"&Traverse!C18) ->  | C14: =IF(Traverse!F18<>"",Traverse!F18,"") ->  | D14: =Traverse!G18 ->  | E14: =Traverse!H18 -> 
B15: =IF(Traverse!B19="","",Traverse!B19&"-"&Traverse!C19) ->  | C15: =IF(Traverse!F19<>"",Traverse!F19,"") ->  | D15: =Traverse!G19 ->  | E15: =Traverse!H19 -> 
C16: =SUM(C5:C15) -> 1678.57 | D16: =SUM(D5:D15) -> -0.3397584154 | E16: =SUM(E5:E15) -> -0.2577321845 | F16: =SUM(F5:F15) -> 0 | G16: =SUM(G5:G15) -> 0
F17: Constants:
F18: =IF(C16<>0,-D16/C16,"") -> 0.000202409441 | G18: =IF(C16<>0,-E16/C16,"") -> 0.0001535427087
C20: Coordinates | E20: Area Comps
B21: Point | C21: East | D21: North | E21: (/) | F21: (\)
B22: =LEFT(B5,1) -> A | C22: =Traverse!K7 -> 500 | D22: =Traverse!K8 -> 1000 | E22: =IF(C23="","",C23*D22) -> 397664.1673
B23: B | C23: =IF(G5<>"",C22+G5,"") -> 397.6641673 | D23: =IF(F5<>"",D22+F5,"") -> 1382.229314 | E23: -78725.08118 | F23: =IF(D23="","",C22*D23) -> 691114.657
B24: C | C24: -56.95515237 | D24: 1080.839103 | E24: 198905.0805 | F24: 429810.9819
B25: D | C25: 184.0283905 | D25: 805.116575 | E25: 402558.2875 | F25: -45855.5372
C26: 500 | D26: 1000 | F26: 184028.3905
D33: sums: | E33: =SUM(E22:E32) -> 920402.4541 | F33: =SUM(F22:F32) -> 1259098.492
E34: diff = | F34: =ABS(E33-F33) -> 338696.038
E35: Area = | F35: =F34/2 -> 169348.019
E36: error = | F36: =IF(F35<0.01,"0",F35*Traverse!L15/Traverse!F20*SQRT(2)) -> 60.84518792

Sheet Transit_Rule
A1: Transit Rule Adjustment
D3: Unadjusted | F3: Adjusted values
B4: Line | C4: Unadj Dist | D4: Lat | E4: Dep | F4: Lat | G4: Dep | H4: Azimuth | I4: Distance
B5: =IF(Traverse!B9="","",Traverse!B9&"-"&Traverse!C9) -> A-B | C5: =IF(Traverse!F9<>"",Traverse!F9,"") -> 395.63 | D5: =Traverse!G9 -> 382.1492347 | E5: =Traverse!H9 -> -102.3965788 | F5: =IF(C5<>"",D5+ABS(D5)*$F$18,"") -> 382.2617214 | G5: =IF(C5<>"",E5+ABS(E5)*$G$18,"") -> -102.3728874 | H5: =IF(F5="","",InverseAz(F5,G5)) -> 345 00 27.1 | I5: =IF(C5<>"",SQRT(F5^2+G5^2),"") -> 395.7325255
B6: =IF(Traverse!B10="","",Traverse!B10&"-"&Traverse!C10) -> B-C | C6: =IF(Traverse!F10<>"",Traverse!F10,"") -> 545.58 | D6: =Traverse!G10 -> -301.5006415 | E6: =Traverse!H10 -> -454.7030895 | F6: -301.4118938 | G6: -454.597885 | H6: =IF(F6="","",InverseAz(F6,G6)) -> 236 27 15.98 | I6: =IF(C6<>"",SQRT(F6^2+G6^2),"") -> 545.4432755
B7: =IF(Traverse!B11="","",Traverse!B11&"-"&Traverse!C11) -> C-D | C7: =IF(Traverse!F11<>"",Traverse!F11,"") -> 366.21 | D7: =Traverse!G11 -> -275.7966524 | E7: =Traverse!H11 -> 240.927314 | F7: -275.7154708 | G7: 240.9830573 | H7: 138 50 44.26 | I7: 366.1855469
B8: =IF(Traverse!B12="","",Traverse!B12&"-"&Traverse!C12) -> D-A | C8: =IF(Traverse!F12<>"",Traverse!F12,"") -> 371.15 | D8: =Traverse!G12 -> 194.8083008 | E8: =Traverse!H12 -> 315.9146221 | F8: 194.8656432 | G8: 315.9877151 | H8: 58 20 18.19 | I8: 371.2423131
B9: =IF(Traverse!B13="","",Traverse!B13&"-"&Traverse!C13) ->  | C9: =IF(Traverse!F13<>"",Traverse!F13,"") ->  | D9: =Traverse!G13 ->  | E9: =Traverse!H13 -> 
B10: =IF(Traverse!B14="","",Traverse!B14&"-"&Traverse!C14) ->  | C10: =IF(Traverse!F14<>"",Traverse!F14,"") ->  | D10: =Traverse!G14 ->  | E10: =Traverse!H14 -> 
B11: =IF(Traverse!B15="","",Traverse!B15&"-"&Traverse!C15) ->  | C11: =IF(Traverse!F15<>"",Traverse!F15,"") ->  | D11: =Traverse!G15 ->  | E11: =Traverse!H15 -> 
B12: =IF(Traverse!B16="","",Traverse!B16&"-"&Traverse!C16) ->  | C12: =IF(Traverse!F16<>"",Traverse!F16,"") ->  | D12: =Traverse!G16 ->  | E12: =Traverse!H16 -> 
B13: =IF(Traverse!B17="","",Traverse!B17&"-"&Traverse!C17) ->  | C13: =IF(Traverse!F17<>"",Traverse!F17,"") ->  | D13: =Traverse!G17 ->  | E13: =Traverse!H17 -> 
B14: =IF(Traverse!B18="","",Traverse!B18&"-"&Traverse!C18) ->  | C14: =IF(Traverse!F18<>"",Traverse!F18,"") ->  | D14: =Traverse!G18 ->  | E14: =Traverse!H18 -> 
B15: =IF(Traverse!B19="","",Traverse!B19&"-"&Traverse!C19) ->  | C15: =IF(Traverse!F19<>"",Traverse!F19,"") ->  | D15: =Traverse!G19 ->  | E15: =Traverse!H19 -> 
C16: =SUM(C5:C15) -> 1678.57 | D16: =SUM(D5:D15) -> -0.3397584154 | E16: =SUM(E5:E15) -> -0.2577321845 | F16: =SUM(F5:F15) -> 0 | G16: =SUM(G5:G15) -> 0
D17: Sum of absolute values | F17: Constants:
D18: =SUMIF(D5:D15,">0")-SUMIF(D5:D15,"<0") -> 1154.254829 | E18: =SUMIF(E5:E15,">0")-SUMIF(E5:E15,"<0") -> 1113.941604 | F18: =IF(C16<>0,-D16/D18,"") -> 0.0002943530378 | G18: =IF(C16<>0,-E16/E18,"") -> 0.000231369565
C20: Coordinates | E20: Area Comps
B21: Point | C21: East | D21: North | E21: (/) | F21: (\)
B22: =LEFT(B5,1) -> A | C22: =Traverse!K7 -> 500 | D22: =Traverse!K8 -> 1000 | E22: =IF(C23="","",C23*D22) -> 397627.1126
B23: B | C23: =IF(G5<>"",C22+G5,"") -> 397.6271126 | D23: =IF(F5<>"",D22+F5,"") -> 1382.261721 | E23: -78748.51792 | F23: =IF(D23="","",C22*D23) -> 691130.8607
B24: C | C24: -56.97077239 | D24: 1080.849828 | E24: 198889.6464 | F24: 429775.1961
B25: D | C25: 184.0122849 | D25: 805.1343568 | E25: 402567.1784 | F25: -45869.12619
C26: 500 | D26: 1000 | F26: 184012.2849
D33: sums: | E33: =SUM(E22:E32) -> 920335.4195 | F33: =SUM(F22:F32) -> 1259049.216
E34: diff = | F34: =ABS(E33-F33) -> 338713.796
E35: Area = | F35: =F34/2 -> 169356.898
E36: error = | F36: =IF(F35<0.01,"0",F35*Traverse!L15/Traverse!F20*SQRT(2)) -> 60.84837807

Sheet Crandall_Method
A1: Crandall Method Adjustment
D3: Unadjusted | F3: Adjusted values | K3: Crandall intermmediate comps
B4: Line | C4: Scaled | D4: Lat | E4: Dep | F4: Lat | G4: Dep | H4: Azimuth | I4: Distance | K4: (Lat*Dep)/L | L4: Lat2/L | M4: Dep2/L | N4: cLat | O4: cDep
B5: =IF(Traverse!B9="","",Traverse!B9&"-"&Traverse!C9) -> A-B | C5: =IF(Traverse!F9<>"",Traverse!F9,"") -> 395.63 | D5: =Traverse!G9 -> 382.1492347 | E5: =Traverse!H9 -> -102.3965788 | F5: =IF(C5<>"",D5+N5,"") -> 382.2578621 | G5: =IF(C5<>"",E5+O5,"") -> -102.4256855 | H5: =IF(C5<>"",InverseAz(F5,G5),"") -> 345 00 00 | I5: =IF(C5<>"",SQRT(F5^2+G5^2),"") -> 395.7424594 | K5: =IF(C5<>"",(D5*E5)/C5,"") -> -98.9075 | L5: =IF(C5<>"",D5^2/C5,"") -> 369.1278152 | M5: =IF(C5<>"",E5^2/C5,"") -> 26.50218475 | N5: =IF(C5<>"",D5*(D5*$F$18+E5*$G$18)/C5,"") -> 0.1086274541 | O5: =IF(C5<>"",E5*(D5*$F$18+E5*$G$18)/C5,"") -> -0.02910663859
B6: =IF(Traverse!B10="","",Traverse!B10&"-"&Traverse!C10) -> B-C | C6: =IF(Traverse!F10<>"",Traverse!F10,"") -> 545.58 | D6: =Traverse!G10 -> -301.5006415 | E6: =Traverse!H10 -> -454.7030895 | F6: =IF(C6<>"",D6+N6,"") -> -301.3775896 | G6: =IF(C6<>"",E6+O6,"") -> -454.5175108 | H6: 236 27 10 | I6: =IF(C6<>"",SQRT(F6^2+G6^2),"") -> 545.3573316 | K6: =IF(C6<>"",(D6*E6)/C6,"") -> 251.2798731 | L6: =IF(C6<>"",D6^2/C6,"") -> 166.6165124 | M6: 378.9634876 | N6: 0.1230519066 | O6: 0.1855786503
B7: =IF(Traverse!B11="","",Traverse!B11&"-"&Traverse!C11) -> C-D | C7: =IF(Traverse!F11<>"",Traverse!F11,"") -> 366.21 | D7: =Traverse!G11 -> -275.7966524 | E7: =Traverse!H11 -> 240.927314 | F7: -275.7669925 | G7: 240.9014041 | H7: 138 51 38 | I7: 366.1706169 | K7: -181.4449269 | L7: 207.7053971 | M7: 158.5046029 | N7: 0.02965981828 | O7: -0.02590988792
B8: =IF(Traverse!B12="","",Traverse!B12&"-"&Traverse!C12) -> D-A | C8: =IF(Traverse!F12<>"",Traverse!F12,"") -> 371.15 | D8: =Traverse!G12 -> 194.8083008 | E8: =Traverse!H12 -> 315.9146221 | F8: 194.88672 | G8: 316.0417921 | H8: 58 20 24 | I8: 371.2994048 | K8: 165.8164912 | L8: 102.2505026 | M8: 268.8994974 | N8: 0.07841923644 | O8: 0.1271700608
B9: =IF(Traverse!B13="","",Traverse!B13&"-"&Traverse!C13) ->  | C9: =IF(Traverse!F13<>"",Traverse!F13,"") ->  | D9: =Traverse!G13 ->  | E9: =Traverse!H13 -> 
B10: =IF(Traverse!B14="","",Traverse!B14&"-"&Traverse!C14) ->  | C10: =IF(Traverse!F14<>"",Traverse!F14,"") ->  | D10: =Traverse!G14 ->  | E10: =Traverse!H14 -> 
B11: =IF(Traverse!B15="","",Traverse!B15&"-"&Traverse!C15) ->  | C11: =IF(Traverse!F15<>"",Traverse!F15,"") ->  | D11: =Traverse!G15 ->  | E11: =Traverse!H15 -> 
B12: =IF(Traverse!B16="","",Traverse!B16&"-"&Traverse!C16) ->  | C12: =IF(Traverse!F16<>"",Traverse!F16,"") ->  | D12: =Traverse!G16 ->  | E12: =Traverse!H16 -> 
B13: =IF(Traverse!B17="","",Traverse!B17&"-"&Traverse!C17) ->  | C13: =IF(Traverse!F17<>"",Traverse!F17,"") ->  | D13: =Traverse!G17 ->  | E13: =Traverse!H17 -> 
B14: =IF(Traverse!B18="","",Traverse!B18&"-"&Traverse!C18) ->  | C14: =IF(Traverse!F18<>"",Traverse!F18,"") ->  | D14: =Traverse!G18 ->  | E14: =Traverse!H18 -> 
B15: =IF(Traverse!B19="","",Traverse!B19&"-"&Traverse!C19) ->  | C15: =IF(Traverse!F19<>"",Traverse!F19,"") ->  | D15: =Traverse!G19 ->  | E15: =Traverse!H19 -> 
B16: sums: | C16: =SUM(C5:C15) -> 1678.57 | D16: =SUM(D5:D15) -> -0.3397584154 | E16: =SUM(E5:E15) -> -0.2577321845 | F16: =SUM(F5:F15) -> 0 | G16: =SUM(G5:G15) -> 0 | K16: =SUM(K5:K15) -> 136.7439374 | L16: 845.7002273 | M16: 832.8697727
E17: Constants | F17: k1 | G17: k2
F18: =IF(C16<>0,(E16*K16-D16*M16)/(L16*M16-K16^2),"") -> 0.0003613036649 | G18: =IF(C16<>0,(D16*K16-E16*L16)/(L16*M16-K16^2),"") -> 0.0002501304593
C20: Coordinates | E20: Area Comps
B21: Point | C21: East | D21: North | E21: (/) | F21: (\)
B22: =LEFT(B5,1) -> A | C22: =Traverse!K7 -> 500 | D22: =Traverse!K8 -> 1000 | E22: =IF(C23="","",C23*D22) -> 397574.3145
B23: B | C23: =IF(G5<>"",C22+G5,"") -> 397.5743145 | D23: =IF(F5<>"",D22+F5,"") -> 1382.257862 | E23: -78710.18076 | F23: =IF(D23="","",C22*D23) -> 691128.9311
B24: C | C24: -56.94319629 | D24: 1080.880273 | E24: 198836.7978 | F24: 429730.2335
B25: D | C25: 183.9582079 | D25: 805.11328 | E25: 402556.64 | F25: -45845.72354
C26: 500 | D26: 1000 | F26: 183958.2079
D33: sums: | E33: =SUM(E22:E32) -> 920257.5716 | F33: =SUM(F22:F32) -> 1258971.649
E34: diff = | F34: =ABS(E33-F33) -> 338714.0772
E35: Area = | F35: =F34/2 -> 169357.0386
E36: error = | F36: =IF(F35<0.01,"0",F35*Traverse!L15/Traverse!F20*SQRT(2)) -> 60.84842858
